[Event "34th GER-ch Seniors-65 2022"]
[Site "Magdeburg"]
[Date "2022.08.14"]
[Round "3.1"]
[White "Boidman, Yuri"]
[Black "Matthey, Harald"]
[Result "1-0"]
[ECO "B06"]
[WhiteElo "2286"]
[BlackElo "2062"]
[Annotator "TA"]
[PlyCount "63"]
[EventDate "2022.08.12"]
[EventType "swiss"]
[EventCountry "GER"]
[SourceTitle "playchess.com"]
[Source "ChessBase"]
[SourceQuality "1"]
[TimeControl "40/5400+30:1800+30"]

{[%evp 9,63,32,41,41,50,49,56,47,79,62,75,78,71,58,71,15,19,33,81,88,79,83,85,60,164,161,159,130,143,138,166,161,150,133,129,112,130,132,151,147,172,156,159,156,156,143,171,187,275,269,567,538,29984,29985,29989,29990]} 1. e4 {[%emt 0:00:05] ChessBase II} d6 {[%emt 0:00:04]} 2. d4 {[%emt 0:00:21]} Nf6 {[%emt 0:00:09]} 3. Nc3 {[%emt 0:00:20]} a6 {[%emt 0:00:12]} 4. a4 {[%emt 0:01:27]} g6 {[%emt 0:02:48]} 5. Bg5 {[%emt 0:04:02]} h6 {[%emt 0:03:56]} 6. Be3 {[%emt 0:03:30] B06: Modern Defence.} Bg7 {[%emt 0:00:35]} 7. f3 {[%emt 0:00:33]} c6 {[%emt 0:06:52]} 8. a5 {[%emt 0:02:25] White is slightly better.} Nbd7 {[%emt 0:05:54]} 9. Bc4 {[%emt 0:03:43] [#]} O-O $146 {[%emt 0:02:43]} ({Predecessor:} 9... b5 10. axb6 d5 11. Bb3 Nxb6 12. Nge2 O-O 13. e5 Ne8 14. h4 Nc4 15. Bxc4 dxc4 {1-0 (51) Hort,V (2605)-Boey,J (2390) Ostend 1971 EXT 2018 [ChessBase II]}) 10. Qd2 {[%emt 0:01:14]} e5 {[%emt 0:20:48]} 11. Nge2 {[%emt 0:06:44] White is more active.} (11. Bxh6 {[#]} Nxe4 $1 12. Nxe4 Qh4+ 13. g3 Qxh6 14. Nxd6 b5 15. axb6 Qxd2+ 16. Kxd2 Nxb6 $14) 11... exd4 {[%emt 0:06:33]} 12. Nxd4 {[%emt 0:00:48]} ({But not} 12. Qxd4 $2 d5 13. e5 (13. exd5 $2 Nxd5 14. Qd2 Nxe3 $19) 13... Nxe5 14. Qxe5 Nh5 $19) (12. Bxd4 $16 Ne5 13. Bb3) 12... Ne5 $11 {[%emt 0:02:51]} 13. Bb3 {[%emt 0:04:30]} c5 {[%emt 0:04:19]} (13... d5 $1 $14) 14. Nde2 $16 {[%emt 0:00:48]} Kh7 {[%emt 0:01:39]} 15. O-O {[%emt 0:01:29]} Be6 {[%emt 0:01:06]} 16. Rfd1 {[%emt 0:01:38]} c4 {[%emt 0:06:31]} (16... Bxb3 $1 $14 17. cxb3 Nc6) 17. Bb6 $18 {[%emt 0:01:56]} Qc8 {[%emt 0:00:09]} 18. Ba2 {[%emt 0:02:27]} Ne8 {[%emt 0:00:58]} 19. Nf4 {[%emt 0:01:28]} Nd7 {[%emt 0:02:10]} 20. Bd4 {[%emt 0:01:38]} Be5 {[%emt 0:02:17]} 21. Nfd5 {[%emt 0:06:09]} Nef6 {[%emt 0:09:06]} 22. Nxf6+ {[%emt 0:18:21]} Nxf6 {[%emt 0:00:41]} 23. f4 {[%emt 0:01:42]} Bxd4+ {[%emt 0:03:57]} 24. Qxd4 {[%emt 0:00:17]} Ne8 {[%emt 0:00:34]} 25. Nd5 {[%emt 0:01:13]} Bxd5 {[%emt 0:01:19]} 26. Qxd5 {[%emt 0:00:44]} ({Much less strong is} 26. exd5 $6 Ng7 $14) 26... c3 {[%emt 0:00:27]} 27. b4 {[%emt 0:05:07]} Qc7 {[%emt 0:00:17]} 28. Rd3 {[%emt 0:02:01]} Rc8 {[%emt 0:00:43]} (28... Nf6 $142 29. Qd4 Qe7) 29. Rf1 {[%emt 0:01:53]} b6 $2 {[%emt 0:05:45]} (29... f6 {was worth a try.} 30. Rff3 Qe7) 30. f5 {[%emt 0:00:42][%cal Bf4f5,Bf5g6,Bg6f7][%mdl 32] [#] Hoping for fxg6+.} bxa5 {[%emt 0:06:33]} 31. fxg6+ {[%emt 0:01:03]} Kg7 {[%emt 0:00:08]} 32. gxf7 {[%emt 0:01:08] Weighted Error Value: White=0.08 (flawless) /Black=0.48} 1-0

[Event "34th GER-ch Seniors-65 2022"]
[Site "Magdeburg"]
[Date "2022.08.14"]
[Round "3.3"]
[White "Syre, Christian"]
[Black "Cichy, Michael"]
[Result "1-0"]
[ECO "D03"]
[WhiteElo "2243"]
[BlackElo "2031"]
[Annotator "TA"]
[PlyCount "161"]
[EventDate "2022.08.12"]
[EventType "swiss"]
[EventCountry "GER"]
[SourceTitle "playchess.com"]
[Source "ChessBase"]
[SourceQuality "1"]
[TimeControl "40/5400+30:1800+30"]

{[%evp 10,161,17,17,18,26,28,31,44,48,47,28,37,18,18,23,22,22,27,20,21,23,29,34,37,41,20,0,39,36,37,33,37,11,60,0,0,0,0,-6,0,0,0,0,0,-19,0,0,0,-47,-45,-110,-2,0,0,-65,0,0,0,-263,-282,-260,-226,-304,-84,-60,0,-14,0,-169,-153,-552,-531,-1218,104,96,83,101,261,116,140,132,128,123,159,152,148,140,177,180,176,175,163,96,228,228,228,0,228,0,228,228,213,103,110,85,88,93,281,206,197,0,677,584,795,1217,1140,1052,1074,1088,1064,1053,952,952,1701,1530,2185,1496,2550,2322,29946,5708,29957,29960,1735,1630,29965,29966,29971,29973,29975,29976,29977,29978,29979,29980,29980,29981,29981,29982,29981,29982,29979,29975]} 1. d4 {[%emt 0:00:10]} Nf6 {[%emt 0:00:09]} 2. Nf3 {[%emt 0:00:06]} e6 {[%emt 0:00:29]} 3. Bg5 {[%emt 0:00:16]} c5 {[%emt 0:01:04]} 4. e3 {[%emt 0:00:12]} Qb6 {[%emt 0:00:57]} 5. Nbd2 {[%emt 0:04:00]} d5 {[%emt 0:00:36]} 6. Rb1 {[%emt 0:05:20]} Nc6 {[%emt 0:02:31][%cal Rc5d4] D03: 1 d4 d5 2 Nf3 Nf6 3 Bg5, including Torre Attack with early ...d5.} 7. c3 {[%emt 0:00:12]} Qc7 {[%emt 0:04:16]} 8. Bd3 {[%emt 0:12:52]} Bd7 {[%emt 0:03:40] White is slightly better.} 9. Qe2 {[%emt 0:00:33]} cxd4 {[%emt 0:03:40]} 10. exd4 {[%emt 0:00:24]} (10. Nxd4 Be7 $11) 10... Bd6 {[%emt 0:08:46]} 11. O-O {[%emt 0:00:17]} Ng4 {[%emt 0:08:16]} 12. h3 {[%emt 0:01:43]} h6 {[%emt 0:04:24] [#]} 13. Bh4 $146 {[%emt 0:08:08]} ({Predecessor:} 13. Be3 Nxe3 14. Qxe3 O-O 15. a3 Rfe8 16. Rfe1 Bf4 17. Qe2 e5 18. dxe5 Nxe5 19. Nxe5 Rxe5 {½-½ (36) Tamzali,B (1915)-Douissa,O (2250) Hammamet 2019}) 13... Nh2 {[%emt 0:12:42]} 14. Rfe1 {[%emt 0:14:05] Black must now prevent Ne5.} Nxf3+ {[%emt 0:11:36]} 15. Qxf3 {[%emt 0:02:14]} g5 {[%emt 0:01:33]} 16. Bg3 {[%emt 0:00:04]} (16. Qf6 {with more complications.} Rf8 17. Bg3 Bxg3 18. fxg3 Qxg3 19. Nf3) 16... Bxg3 $1 {[%emt 0:00:42]} 17. fxg3 {[%emt 0:00:02]} O-O-O {[%emt 0:00:27]} 18. b4 {[%emt 0:14:28][%cal Bb2b4,Bb4b5][%mdl 32]} f5 {[%emt 0:05:43]} (18... e5 $5 {[%cal Re5e4]}) 19. b5 {[%emt 0:03:41]} Na5 {[%emt 0:01:25]} 20. c4 {[%emt 0:06:15]} dxc4 {[%emt 0:02:54] [#]} 21. Bxc4 {[%emt 0:00:15]} Qd6 {[%emt 0:01:23]} (21... Nxc4 22. Nxc4 Kb8 23. Rec1 $16) (21... Rhe8 $11 {is more appropriate.}) (21... Kb8 22. Bxe6) 22. Qf2 {[%emt 0:01:22]} (22. Qc3 $14 Qc7 23. Qa3 $1) 22... Kb8 $11 {[%emt 0:01:22]} 23. Bf1 {[%emt 0:03:04]} Bc8 {[%emt 0:01:38]} 24. Nf3 {[%emt 0:00:12]} Rhf8 {[%emt 0:02:58]} 25. Red1 {[%emt 0:00:17]} b6 {[%emt 0:00:46]} 26. Ne5 {[%emt 0:00:43]} Bb7 {[%emt 0:03:22]} 27. Rd2 {[%emt 0:07:05]} Bd5 {[%emt 0:00:48]} 28. Re1 {[%emt 0:00:08]} Rc8 {[%emt 0:04:30]} 29. Qe3 {[%emt 0:01:15]} (29. Be2 $11) 29... Rc7 $15 {[%emt 0:01:51]} 30. Qe2 {[%emt 0:03:14]} (30. Be2 $15) 30... Rfc8 {[%emt 0:03:07]} (30... Nc4 $1 $17 {[%cal Rc4d2]} 31. Nxc4 Rxc4) 31. Qh5 $1 $11 {[%emt 0:00:56]} Qf8 {[%emt 0:00:18]} 32. Kh2 {[%emt 0:02:10]} (32. Be2 $11) 32... Kb7 {[%emt 0:00:22]} (32... Ka8 $15) 33. Be2 {[%emt 0:03:28]} f4 $36 {[%emt 0:01:42][%mdl 2048] White is under pressure.} 34. g4 {[%emt 0:01:40][%mdl 8192]} (34. Rf1 $1 $11) 34... f3 $1 $19 {[%emt 0:01:03]} (34... Qa3 35. Bf3 $11) 35. Nxf3 {[%emt 0:00:31]} Qf4+ {[%emt 0:01:15]} 36. Kh1 {[%emt 0:02:46]} Kb8 $2 {[%emt 0:01:25]} (36... Nc4 $1 $19 {[%cal Rc4d2]} 37. Rc2 Ne3) 37. Rd3 $17 {[%emt 0:01:06]} Rc1 {[%emt 0:00:57]} (37... Be4 $15 38. Rdd1 Nc4 39. Qxh6 Ne3 40. Qxg5 Nxg2) 38. Rg1 {[%emt 0:02:24]} Rxg1+ {[%emt 0:01:58]} 39. Kxg1 $2 {[%emt 0:00:03]} (39. Nxg1 $11 {and White is okay.} Nc4 40. Bf3) 39... Bc4 {[%emt 0:01:40]} 40. Rd2 {[%emt 0:00:46]} (40. Qg6 $17 {is tougher.} Bxb5 41. Kf2 Bxd3 42. Bxd3) 40... Qe3+ $19 {[%emt 0:00:48]} 41. Kf1 {[%emt 0:30:18] [#]} Bxe2+ $2 {[%emt 0:30:52]} (41... Bxb5 $1 $19 {[%mdl 512] ( -> ...Rc1+)} 42. Qf7 (42. Ne1 Rc1) 42... Rc1+ 43. Ne1 Qxd2 44. Qg8+ Kc7 45. Qf7+ Bd7) 42. Rxe2 $16 {[%emt 0:00:03]} Rc1+ {[%emt 0:00:00]} 43. Ne1 $1 {[%emt 0:00:00]} (43. Re1 Nc4 44. Qe8+ Kc7 45. Qe7+ Kc8 46. Qe8+ Kb7 47. Qd7+ Kb8 48. Qe8+ Kb7 49. Qc6+ Kb8 50. Qe8+ $11) 43... Qxd4 {[%emt 0:00:00]} (43... Qf4+ $16 44. Kg1 (44. Rf2 Rxe1+ 45. Kxe1 Qe3+ 46. Kf1 Qc1+ 47. Ke2 Qc2+ 48. Ke1 Qc1+ 49. Ke2 Qc2+ 50. Ke1 Qc1+ 51. Ke2 $11) 44... Qxd4+ 45. Kh1 Qb4 46. Qe8+ Rc8) 44. Qe8+ {[%emt 0:00:00]} ({Less strong is} 44. Qf7 Nb7 $14) (44. Qxh6 $18 {is the precise move to win.} Qf4+ 45. Kg1) 44... Rc8 {[%emt 0:00:00]} 45. Qxe6 {[%emt 0:00:00]} Nc4 {[%emt 0:00:00]} 46. Nf3 {[%emt 0:00:00] Inhibits Nd2+.} Qc5 {[%emt 0:00:00]} 47. a4 {[%emt 0:00:00]} Rd8 {[%emt 0:00:00]} 48. Re4 {[%emt 0:00:00]} Nd2+ {[%emt 0:00:00]} 49. Nxd2 {[%emt 0:00:00]} Qc1+ {[%emt 0:00:00]} 50. Re1 {[%emt 0:00:00]} Qxd2 $18 {[%emt 0:00:00][%mdl 4096] Endgame KQR-KQR} 51. Qe5+ {[%emt 0:00:00]} ({But not} 51. Qxh6 $2 Qd4 52. h4 Rh8 53. hxg5 Qf4+ 54. Kg1 Rxh6 55. gxh6 Qxh6 $19) ({Better is} 51. Kg1 $1 $18) 51... Ka8 {[%emt 0:01:47]} (51... Kc8 $16) 52. Qe4+ {[%emt 0:00:00]} Kb8 {[%emt 0:00:09]} 53. Qe5+ {[%emt 0:00:00]} Ka8 $1 {[%emt 0:00:02]} 54. Qe4+ {[%emt 0:00:00]} Kb8 {[%emt 0:00:04]} 55. Kg1 $1 {[%emt 0:00:00]} Qd4+ {[%emt 0:01:08]} 56. Kh1 {[%emt 0:00:00]} (56. Kh2 $1 $18 {and the rest is easy.}) 56... Qxe4 $16 {[%emt 0:01:47]} 57. Rxe4 {[%emt 0:00:00] Hoping for Re6. KR-KR} Rd1+ {[%emt 0:00:35]} 58. Kh2 {[%emt 0:00:00] aiming for Re6.} Ra1 $2 {[%emt 0:00:35]} (58... Kc7 $16) 59. Rc4 {[%emt 0:00:00]} Ra3 {[%emt 0:01:29] [#]} 60. h4 $2 {[%emt 0:03:33]} (60. Rc6 $1 $18 {[%cal Rc6h6]}) 60... Kb7 $2 {[%emt 0:01:22][%mdl 8192]} (60... gxh4 $11 61. Rc6 Rg3) 61. h5 $18 {[%emt 0:01:03]} a5 {[%emt 0:00:52]} 62. bxa6+ {[%emt 0:02:12]} Kxa6 {[%emt 0:00:05]} 63. Rc6 {[%emt 0:00:44]} Rxa4 {[%emt 0:00:15]} 64. Rxh6 {[%emt 0:00:57]} Rxg4 {[%emt 0:00:22]} 65. g3 {[%emt 0:00:02]} Rc4 {[%emt 0:00:25]} 66. Rg6 {[%emt 0:00:03] Threatens to win with Kh3.} g4 {[%emt 0:00:52] [#]} 67. h6 $1 {[%emt 0:00:14]} Rc2+ {[%emt 0:00:23]} 68. Kg1 {[%emt 0:00:02]} Rc1+ {[%emt 0:00:16]} 69. Kf2 {[%emt 0:00:02]} Rh1 {[%emt 0:01:32]} 70. Ke3 {[%emt 0:00:00] White threatens Kf4 and mate.} Ka5 {[%emt 0:00:01]} 71. Kf4 {[%emt 0:00:18]} b5 {[%emt 0:00:07]} 72. Kxg4 {[%emt 0:00:02] Strongly threatening Kg5.} Ka4 {[%emt 0:00:44]} 73. Ra6+ {[%emt 0:00:18] White mates.} Kb3 {[%emt 0:00:04]} 74. Kg5 {[%emt 0:00:07]} b4 {[%emt 0:00:33]} 75. g4 {[%emt 0:00:09][%cal Bg3g4,Bg4g5][%mdl 32]} Kc2 {[%emt 0:00:12]} 76. Kg6 {[%emt 0:00:08]} b3 {[%emt 0:00:19]} 77. h7 {[%emt 0:00:46]} b2 {[%emt 0:00:23]} 78. Rb6 {[%emt 0:00:14]} b1=Q {[%emt 0:00:52]} 79. Rxb1 {[%emt 0:00:02]} Kxb1 {[%emt 0:00:09]} 80. g5 {[%emt 0:00:05]} Kc2 {[%emt 0:00:32]} 81. Kg7 {[%emt 0:00:03] Weighted Error Value: White=0.61/Black=0.43} 1-0

[Event "34th GER-ch Seniors-65 2022"]
[Site "Magdeburg"]
[Date "2022.08.14"]
[Round "3.5"]
[White "Schulz, Michael"]
[Black "Neese, Hans-Joachim"]
[Result "1/2-1/2"]
[ECO "D00"]
[WhiteElo "2217"]
[BlackElo "2059"]
[Annotator "TA"]
[PlyCount "117"]
[EventDate "2022.08.12"]
[EventType "swiss"]
[EventCountry "GER"]
[SourceTitle "playchess.com"]
[Source "ChessBase"]
[SourceQuality "1"]
[TimeControl "40/5400+30:1800+30"]

{[%evp 9,117,-16,-24,-54,-34,-52,-21,-19,17,18,111,109,125,46,126,23,175,151,294,99,110,14,36,-61,60,-47,68,-55,-40,-105,-100,-102,-29,-77,-79,-58,-33,-14,-6,-6,0,0,20,41,47,0,0,0,0,0,0,0,0,0,-3,-15,0,-16,0,-16,0,0,0,-29,-39,-41,0,-18,-16,-55,-12,-22,0,0,0,0,0,0,0,0,320,0,0,0,0,0,0,0,0,0,0,0,0,0,0,0,0,0,0,0,0,0,0,-8,-8,-8,-8,-8,-8,-68]} 1. d4 {[%emt 0:00:02]} d5 {[%emt 0:00:57]} 2. Bg5 {[%emt 0:00:15]} c5 {[%emt 0:05:04]} 3. Nc3 {[%emt 0:00:09]} f6 {[%emt 0:03:38]} 4. Bh4 {[%emt 0:00:48]} e6 {[%emt 0:05:14]} 5. e3 {[%emt 0:00:15]} Nc6 {[%emt 0:00:49] [#]} 6. Bb5 $146 {[%emt 0:02:11] D00: 1 d4 d5: Unusual lines.} ({Predecessor:} 6. Nf3 Nh6 7. Bd3 c4 8. Be2 Bb4 9. a3 Ba5 10. g4 Nf7 11. Nd2 O-O 12. O-O {1-0 (37) Lorenzo de la Riva,L (2429)-Aranda Flores,J (2132) Barcelona 2022}) 6... Bd7 {[%emt 0:09:50]} 7. Nge2 {[%emt 0:06:29]} Qb6 {[%emt 0:13:52]} 8. a4 {[%emt 0:08:47][%cal Oa4a5]} a5 {[%emt 0:03:53]} 9. O-O {[%emt 0:02:49]} Nge7 {[%emt 0:05:31]} (9... O-O-O $11 {remains equal.}) 10. dxc5 $1 $16 {[%emt 0:03:32]} Qxc5 {[%emt 0:00:17]} 11. Nd4 {[%emt 0:01:11]} (11. f4 $1 $16) 11... Rd8 {[%emt 0:06:45]} (11... Qb6 $14) 12. Bg3 {[%emt 0:05:16]} (12. Qh5+ $1 $16 Ng6 13. Bg3) 12... e5 $2 {[%emt 0:11:00]} (12... Qb6 $11 {and Black stays safe.}) 13. Nb3 $18 {[%emt 0:00:20]} Qd6 {[%emt 0:03:31]} (13... Qb6 $16 {keeps fighting.}) 14. Ne4 $2 {[%emt 0:03:07]} (14. f4 $18) 14... Qc7 $16 {[%emt 0:03:07]} 15. Nec5 {[%emt 0:02:35]} (15. Qh5+ $1 $16 Ng6 16. Nc3) 15... Bc8 $1 $11 {[%emt 0:00:29]} 16. Nd4 {[%emt 0:13:34]} Rd6 {[%emt 0:04:11]} (16... Kf7 $1 $15 17. Qd2 h5) 17. Re1 {[%emt 0:08:36]} ({Better is} 17. c4 $1 $14) 17... Kf7 {[%emt 0:00:43]} (17... h5 $15 18. h3 Kf7) 18. Nf3 {[%emt 0:05:04] White is much more active. The black rooks are badly placed.} (18. c4 $1 $14) 18... Nf5 $15 {[%emt 0:05:11]} 19. Bxc6 {[%emt 0:02:54]} (19. c4 $15 Na7 20. Bxe5 fxe5 21. Nxe5+ Kg8 22. Ncd3) 19... Qxc6 $17 {[%emt 0:01:56]} 20. Nd3 {[%emt 0:02:57] [#]} Qe8 {[%emt 0:01:25]} (20... Kg8 $1 $17 21. Nd2 h5) 21. e4 {[%emt 0:07:34]} (21. Ndxe5+ $1 $11 fxe5 22. Bxe5) 21... Nxg3 {[%emt 0:02:09]} 22. hxg3 {[%emt 0:00:14]} d4 {[%emt 0:01:12]} 23. Nh4 {[%emt 0:02:23]} g6 {[%emt 0:00:44]} 24. f4 {[%emt 0:00:28]} Kg7 {[%emt 0:04:18]} 25. Qd2 {[%emt 0:02:51]} b6 {[%emt 0:00:40]} 26. fxe5 {[%emt 0:00:24]} fxe5 {[%emt 0:00:03]} 27. Qg5 {[%emt 0:00:10]} (27. b4 $1 $14 {is superior.}) 27... Re6 $11 {[%emt 0:00:59]} 28. Nf5+ {[%emt 0:04:19]} Kg8 {[%emt 0:00:32]} 29. Nh6+ {[%emt 0:01:17]} Bxh6 {[%emt 0:01:24]} 30. Qxh6 {[%emt 0:00:04]} Qf8 {[%emt 0:00:24] Inhibits b4.} 31. Qg5 {[%emt 0:00:24]} Qe7 {[%emt 0:00:29]} 32. Qh6 {[%emt 0:01:10][%cal Ob2b4]} Qf8 {[%emt 0:01:02]} 33. Qh4 {[%emt 0:05:58]} Qe7 {[%emt 0:00:15]} 34. Qh6 {[%emt 0:03:09]} Qf8 {[%emt 0:00:04]} 35. Qd2 {[%emt 0:01:27]} Qe7 {[%emt 0:00:33]} 36. Rf1 {[%emt 0:00:09]} Kg7 {[%emt 0:00:07]} 37. Rf3 {[%emt 0:00:14]} Rf8 {[%emt 0:01:40]} 38. Raf1 {[%emt 0:00:23]} Rxf3 {[%emt 0:00:34]} 39. Rxf3 {[%emt 0:00:12]} Bb7 {[%emt 0:00:20]} 40. Nf2 {[%emt 0:01:00]} Bc6 {[%emt 0:00:58]} 41. b3 {[%emt 0:30:18]} Qb7 {[%emt 0:31:06]} 42. Ng4 {[%emt 0:01:35] White threatens Qh6+ and mate.} Qe7 {[%emt 0:02:43]} 43. Nh6 {[%emt 0:00:00]} Be8 {[%emt 0:00:00] Against Rf7+} 44. g4 {[%emt 0:00:00]} ({Of course not} 44. Ng4 g5 45. Nf2 Rc6 $15) 44... Qh4 $2 {[%emt 0:00:00][%mdl 8192] [#]} (44... Qc5 $11 {and Black has nothing to worry.} 45. Kf1 Rf6) 45. Rh3 $2 {[%emt 0:00:00]} ({White has to play} 45. g5 $1 $18 {Black must now prevent g3.} Re7 46. g3) 45... Qf6 {[%emt 0:00:00] The position is equal.} 46. g5 {[%emt 0:00:00]} Qf4 {[%emt 0:00:00]} 47. Qxf4 {[%emt 0:00:00]} exf4 {[%emt 0:00:00][%mdl 4096] Endgame KRB-KRN} 48. Ng4 {[%emt 0:00:00] Inhibits Re5.} Bc6 {[%emt 0:00:00]} 49. Nf6 {[%emt 0:00:00]} h5 {[%emt 0:00:00] Threatens to win with ...Re5.} 50. gxh6+ {[%emt 0:00:00]} Kh8 {[%emt 0:00:00]} (50... Kxf6 51. h7 Re8 52. h8=Q+ Rxh8 53. Rxh8 $14) 51. e5 {[%emt 0:00:00]} Rxe5 {[%emt 0:00:00] aiming for ...Re6.} 52. Rd3 $1 {[%emt 0:00:00]} Re6 {[%emt 0:00:00]} (52... Rf5 $5 53. Ng4 Rg5 $11) 53. Ng4 {[%emt 0:00:00]} Re2 {[%emt 0:00:00]} 54. Nf6 {[%emt 0:00:00]} Re6 {[%emt 0:00:00]} (54... Bxg2 $2 55. Rxd4 Bc6 56. Rd6 $18) 55. Ng4 {[%emt 0:00:00]} Re2 {[%emt 0:00:00][%csl LRc2,LRg2]} 56. Nf2 {[%emt 0:00:00]} Kh7 {[%emt 0:00:00]} 57. Rxd4 {[%emt 0:00:00]} Rxc2 {[%emt 0:00:00]} 58. Rxf4 {[%emt 0:00:00] Ng4 is the strong threat.} Kxh6 {[%emt 0:00:32]} 59. Rf6 {[%emt 0:13:26] Weighted Error Value: White=0.32/Black=0.37} ({White should play} 59. b4 $11) 1/2-1/2

[Event "34th GER-ch Seniors-65 2022"]
[Site "Magdeburg"]
[Date "2022.08.14"]
[Round "3.6"]
[White "Vatter, Hans-Joachim"]
[Black "Westermann, Johannes"]
[Result "1-0"]
[ECO "C58"]
[WhiteElo "2186"]
[BlackElo "2056"]
[Annotator "TA"]
[PlyCount "49"]
[EventDate "2022.08.12"]
[EventType "swiss"]
[EventCountry "GER"]
[SourceTitle "playchess.com"]
[Source "ChessBase"]
[SourceQuality "1"]
[TimeControl "40/5400+30:1800+30"]

{[%evp 14,49,25,41,59,41,89,81,107,77,96,87,98,93,96,75,83,70,79,76,104,6,108,78,116,105,150,147,335,324,308,317,306,314,552,548,523,514]} 1. e4 {[%emt 0:00:46]} e5 {[%emt 0:00:09]} 2. Nf3 {[%emt 0:00:20]} Nc6 {[%emt 0:00:08]} 3. Bc4 {[%emt 0:00:29]} Nf6 {[%emt 0:00:16]} 4. Ng5 {[%emt 0:00:25]} d5 {[%emt 0:00:22]} 5. exd5 {[%emt 0:00:02]} Na5 {[%emt 0:00:42]} 6. Bb5+ {[%emt 0:00:18]} c6 {[%emt 0:00:12]} 7. dxc6 {[%emt 0:00:03]} bxc6 {[%emt 0:00:06]} 8. Bd3 $1 {[%emt 0:00:13][%mdl 4] outshines the older 8.Be2.} Bg4 {[%emt 0:10:05] C58: Two Knights: 4 Ng5 d5 5 exd5 Na5 sidelines.} 9. f3 {[%emt 0:07:41]} (9. Be2 $5 {[%cal Re2g4]} h6 10. Bxg4 hxg5 11. d3 $14) 9... Bh5 {[%emt 0:06:11] [#]} (9... Bc8 $14 {deserves consideration.}) 10. Nc3 $146 {[%emt 0:11:33]} ({Predecessor:} 10. O-O Bc5+ 11. Kh1 Bb6 12. Nc3 O-O 13. Nge4 Nd5 14. Nxd5 cxd5 15. Ng3 Bg6 16. Bxg6 hxg6 {1-0 (64) Vekua,T-Byk,A Minsk 2019}) 10... Bc5 {[%emt 0:05:41] White is better.} 11. Nge4 {[%emt 0:01:45]} Bb6 {[%emt 0:03:26]} 12. Nxf6+ {[%emt 0:05:55]} Qxf6 {[%emt 0:00:10]} 13. Qe2 {[%emt 0:01:29]} O-O {[%emt 0:02:03]} 14. Ne4 {[%emt 0:08:37]} ({Much weaker is} 14. Qe4 $6 Bg6 15. Qe2 Bxd3 16. Qxd3 Rad8 $11) 14... Qh4+ {[%emt 0:03:45]} 15. g3 {[%emt 0:00:38][%cal Bg2g3,Bg3g4][%mdl 32]} Qe7 {[%emt 0:00:07] [#] ...f5 is the strong threat.} 16. g4 {[%emt 0:04:08]} Bg6 {[%emt 0:03:53]} 17. Ng3 {[%emt 0:07:52]} (17. h4 $16) 17... Qh4 {[%emt 0:21:29]} (17... Bxd3 $11 {keeps the balance.} 18. Qxd3 Nb7) 18. b3 {[%emt 0:12:47]} Bxd3 {[%emt 0:21:37]} 19. Qxd3 {[%emt 0:00:14]} e4 {[%emt 0:05:20]} 20. fxe4 {[%emt 0:05:16]} ({Don't blunder} 20. Qxe4 $2 Rfe8 21. Ba3 Rxe4+ 22. fxe4 Qf6 $19) 20... Bf2+ $2 {[%emt 0:07:09] [#] This costs Black the game.} (20... Qxg4 $16 21. Qe2 Qxe2+ 22. Kxe2 Nb7) 21. Kxf2 $18 {[%emt 0:04:20]} Qf6+ {[%emt 0:00:09]} 22. Kg2 {[%emt 0:00:27]} Qxa1 {[%emt 0:00:55]} 23. Ba3 $1 {[%emt 0:01:19][%csl LRa1,LRf8]} Qxa2 {[%emt 0:00:10]} (23... Qe5 24. Bxf8 Kxf8) 24. Bxf8 {[%emt 0:00:15]} Rxf8 {[%emt 0:00:20]} 25. Qc3 {[%emt 0:00:14] Prevents Qb2.  Weighted Error Value: White=0.16 (very precise) /Black=0.59} 1-0